fUST/lending_fUST_20240612
["ID","MTS","AMOUNT","RATE_DAILY","PERIOD"]
[329223604,1718188245078,-500.0,0.00016986,2]
[329223606,1718188245093,-2000.0,0.00017,2]
[329223608,1718188245113,-1021.13,0.00017258,2]
[329223610,1718188245124,-500.0,0.00017259,2]
[329223612,1718188245135,-1021.13,0.00017259,2]
[329223613,1718188245147,-500.0,0.00017259,2]
[329223615,1718188245158,-500.0,0.0001726,2]
[329223617,1718188245169,-594.44080615,0.0001726,2]
[329223618,1718188245179,-500.0,0.0001726,2]
[329223619,1718188245189,-500.0,0.0001726,2]
[329223620,1718188245199,-500.0,0.0001726,2]
[329223621,1718188245210,-500.0,0.0001726,2]
[329223622,1718188245220,-500.0,0.0001726,2]
[329223623,1718188245230,-500.0,0.0001726,2]
[329223624,1718188245240,-500.0,0.0001726,2]
[329223625,1718188245250,-170.10079905,0.0001726,2]
[329223626,1718188245261,-500.0,0.0001726,2]
[329223627,1718188245271,-582.97,0.0001726,2]
[329223628,1718188245281,-500.0,0.0001726,2]
[329223629,1718188245291,-500.0,0.0001726,2]
[329223630,1718188245301,-500.0,0.0001726,2]
[329223631,1718188245311,-500.0,0.0001726,2]
[329223632,1718188245321,-500.0,0.0001726,2]
[329223633,1718188245331,-696.66,0.0001726,2]
[329223634,1718188245341,-500.0,0.0001726,2]
[329223635,1718188245352,-500.0,0.0001726,2]
[329223636,1718188245362,-449.0730593,0.0001726,2]
[329223637,1718188245372,-500.0,0.0001726,2]
[329223638,1718188245383,-500.0,0.0001726,2]
[329223639,1718188245393,-500.0,0.0001726,2]
[329223640,1718188245403,-500.0,0.0001726,2]
[329223641,1718188245413,-324.57038224,0.0001726,2]
[329223642,1718188245424,-500.0,0.0001726,2]
[329223643,1718188245434,-500.0,0.0001726,4]
[329223645,1718188245445,-250.0,0.0001726,2]
[329223647,1718188245457,-593.6149024,0.0001726,2]
[329223649,1718188245468,-500.0,0.0001726,2]
[329223651,1718188245478,-588.26120182,0.0001726,2]
[329223653,1718188245490,-500.0,0.0001726,2]
[329223655,1718188245501,-500.0,0.0001726,2]
[329223657,1718188245512,-500.0,0.0001726,2]
[329223659,1718188245525,-825.55,0.0001726,2]
[329223661,1718188245537,-500.0,0.0001726,2]
[329223663,1718188245554,-500.0,0.0001726,2]
[329223665,1718188245567,-1727.59,0.0001726,2]
[329223667,1718188245584,-1740.19,0.0001726,2]
[329223668,1718188245598,-7063.79,0.0001726,2]
[329223670,1718188245613,-786.1,0.0001726,2]
[329223673,1718188245640,-810.78,0.0001726,2]
[329223675,1718188245653,-500.0,0.0001726,2]
[329223676,1718188245664,-500.0,0.0001726,2]
[329223678,1718188245676,-500.0,0.0001726,2]
[329223680,1718188245687,-500.0,0.0001726,2]
[329223682,1718188245699,-165.58453899,0.0001726,2]
[329223684,1718188245710,-3655.11,0.0001726,2]
[329223686,1718188245722,-1256.97,0.0001726,2]
[329223688,1718188245734,-18538.88,0.0001726,2]
[329223690,1718188245745,-588.10580168,0.0001726,2]
[329223692,1718188245756,-500.0,0.0001726,2]
[329223694,1718188245766,-500.34,0.0001726,2]
[329223696,1718188245777,-974.66,0.0001726,2]
[329223698,1718188245787,-3491.11,0.0001726,2]
[329223700,1718188245798,-12318.95,0.0001726,2]
[329223702,1718188245809,-500.0,0.0001726,2]
[329223704,1718188245820,-500.0,0.0001726,2]
[329223706,1718188245830,-3344.13,0.0001726,2]
[329223708,1718188245841,-262.28007136,0.0001726,2]
[329223710,1718188245851,-1399.13457625,0.00017433,2]
[329223711,1718188245861,-500.0,0.00017532,2]
[329223713,1718188245872,-1021.13,0.00017532,2]
[329223715,1718188245883,-500.0,0.00017532,2]
[329223717,1718188245894,-500.0,0.00017533,2]
[329223719,1718188245904,-1021.13,0.00017533,2]
[329223722,1718188245915,-500.0,0.00017533,2]
[329223725,1718188245926,-500.0,0.00017534,2]
[329223728,1718188245940,-516.88891639,0.00017534,2]
[329223731,1718188245950,-500.0,0.00017534,2]
[329223733,1718188245961,-500.0,0.00017534,2]
[329223735,1718188245972,-500.0,0.00017534,2]
[329223737,1718188245983,-500.0,0.00017534,2]
[329223739,1718188245992,-500.0,0.00017534,2]
[329223741,1718188246003,-582.97,0.00017534,2]
[329223743,1718188246035,-508.594545,0.00017534,2]
[329223746,1718188246046,-505.69946728,0.00017534,2]
[329223749,1718188246056,-500.0,0.00017534,2]
[329223752,1718188246068,-500.0,0.00017534,2]
[329223754,1718188246079,-696.66,0.00017534,2]
[329223756,1718188246091,-500.0,0.00017534,2]
[329223758,1718188246102,-500.0,0.00017534,2]
[329223759,1718188246113,-500.0,0.00017534,2]
[329223761,1718188246123,-500.0,0.00017534,2]
[329223763,1718188246134,-500.0,0.00017534,2]
[329223765,1718188246144,-500.0,0.00017534,2]
[329223767,1718188246156,-500.0,0.00017534,4]
[329223769,1718188246166,-250.0,0.00017534,2]
[329223771,1718188246177,-318.1967511,0.00017534,2]
[329223773,1718188246188,-500.0,0.00017534,2]
[329223775,1718188246198,-500.0,0.00017534,2]
[329223777,1718188246209,-500.0,0.00017534,2]
[329223779,1718188246219,-825.55,0.00017534,2]
[329223781,1718188246231,-500.0,0.00017534,2]
[329223783,1718188246242,-500.0,0.00017534,2]
[329223785,1718188246253,-1727.59,0.00017534,2]
[329223787,1718188246264,-1740.19,0.00017534,2]
[329223789,1718188246275,-7063.79,0.00017534,2]
[329223790,1718188246287,-786.1,0.00017534,2]
[329223793,1718188246303,-810.78,0.00017534,2]
[329223795,1718188246314,-500.0,0.00017534,2]
[329223797,1718188246327,-500.0,0.00017534,2]
[329223799,1718188246343,-500.0,0.00017534,2]
[329223801,1718188246356,-500.0,0.00017534,2]
[329223803,1718188246367,-3655.11,0.00017534,2]
[329223805,1718188246378,-1256.97,0.00017534,2]
[329223807,1718188246391,-18538.88,0.00017534,2]
[329223809,1718188246402,-500.0,0.00017534,2]
[329223811,1718188246413,-500.34,0.00017534,2]
[329223813,1718188246424,-974.66,0.00017534,2]
[329223815,1718188246435,-3491.11,0.00017534,2]
[329223816,1718188246445,-12318.95,0.00017534,2]
[329223818,1718188246455,-500.0,0.00017534,2]
[329223820,1718188246467,-500.0,0.00017534,2]
[329223822,1718188246478,-3344.13,0.00017534,2]
[329223824,1718188246488,-500.0,0.00017806,2]
[329223826,1718188246499,-1021.13,0.00017806,2]
[329223828,1718188246509,-558.2,0.00017806,2]
[329223830,1718188246520,-391.87892282,0.00017807,2]
[329223832,1718188246531,-1021.13,0.00017807,2]
[329223834,1718188246541,-201.96909075,0.00017808,2]
[329223836,1718188246552,-500.0,0.00017808,2]
[329223837,1718188246563,-500.0,0.00017808,2]
[329223839,1718188246574,-500.0,0.00017808,2]
[329223841,1718188246584,-500.0,0.00017808,2]
[329223844,1718188246595,-500.0,0.00017808,2]
[329223845,1718188246608,-582.97,0.00017808,2]
[329223847,1718188246618,-500.0,0.00017808,2]
[329223849,1718188246628,-500.0,0.00017808,2]
[329223851,1718188246639,-696.66,0.00017808,2]
[329223853,1718188246650,-500.0,0.00017808,2]
[329223855,1718188246660,-500.0,0.00017808,2]
[329223857,1718188246671,-500.0,0.00017808,2]
[329223859,1718188246681,-500.0,0.00017808,2]
[329223861,1718188246691,-500.0,0.00017808,2]
[329223863,1718188246702,-500.0,0.00017808,4]
[329223865,1718188246712,-250.0,0.00017808,2]
[329223867,1718188246722,-500.0,0.00017808,2]
[329223869,1718188246733,-500.0,0.00017808,2]
[329223871,1718188246743,-500.0,0.00017808,2]
[329223873,1718188246753,-825.55,0.00017808,2]
[329223874,1718188246763,-544.83215869,0.00017808,2]
[329223875,1718188246773,-500.0,0.00017808,2]
[329223876,1718188246784,-1727.59,0.00017808,2]
[329223877,1718188246794,-1740.19,0.00017808,2]
[329223878,1718188246805,-7063.79,0.00017808,2]
[329223879,1718188246815,-786.1,0.00017808,2]
[329223880,1718188246825,-810.78,0.00017808,2]
[329223881,1718188246837,-500.0,0.00017808,2]
[329223882,1718188246854,-500.0,0.00017808,2]
[329223883,1718188246864,-500.0,0.00017808,2]
[329223884,1718188246876,-3655.11,0.00017808,2]
[329223885,1718188246887,-1256.97,0.00017808,2]
[329223886,1718188246897,-18538.88,0.00017808,2]
[329223887,1718188246908,-294.89911392,0.00017808,2]
[329223888,1718188246918,-500.34,0.00017808,2]
[329223889,1718188246931,-974.66,0.00017808,2]
[329223890,1718188246942,-3491.11,0.00017808,2]
[329223891,1718188246953,-12318.95,0.00017808,2]
[329223892,1718188246963,-500.0,0.00017808,2]
[329223893,1718188246974,-500.0,0.00017808,2]
[329223895,1718188246986,-3344.13,0.00017808,2]
[329223897,1718188246996,-10491.92816074,0.00017898,2]
[329223899,1718188247020,-579.7694371,0.00017924,2]
[329223901,1718188247039,-292.5693121,0.00017924,2]
[329223903,1718188247052,-292.5693121,0.00017924,2]
[329223905,1718188247064,-292.5693121,0.00017924,2]
[329223907,1718188247075,-1399.13457625,0.00017981,2]
[329223909,1718188247085,-876.82850055,0.00018,2]
[329223911,1718188247095,-1355.61945113,0.00018,2]
[329223913,1718188247107,-632.99963654,0.00018,2]
[329223915,1718188247119,-155.03255684,0.00018,2]
[329223917,1718188247129,-2765.44251206,0.00018,2]
[329223919,1718188247140,-1036.68456979,0.00018,2]
[329223921,1718188247151,-204.17791001,0.00018,2]
[329223923,1718188247163,-155.02790502,0.00018,2]
[329223925,1718188247174,-1021.13,0.0001808,2]
[329223927,1718188247184,-1021.13,0.00018081,2]
[329223929,1718188247195,-500.0,0.00018082,2]
[329223931,1718188247206,-500.0,0.00018082,2]
[329223932,1718188247217,-500.0,0.00018082,2]
[329223934,1718188247227,-500.0,0.00018082,2]
[329223936,1718188247238,-500.0,0.00018082,2]
[329223938,1718188247248,-582.97,0.00018082,2]
[329223940,1718188247259,-583.62574093,0.00018082,2]
[329223942,1718188247271,-3677.7192,0.00018082,2]
[329223944,1718188247283,-500.0,0.00018082,2]
[329223946,1718188247293,-696.66,0.00018082,2]
[329223948,1718188247304,-500.0,0.00018082,2]
[329223950,1718188247317,-500.0,0.00018082,2]
[329223952,1718188247333,-500.0,0.00018082,2]
[329223954,1718188247343,-500.0,0.00018082,2]
[329223956,1718188247355,-500.0,0.00018082,2]
[329223958,1718188247365,-500.0,0.00018082,4]
[329223960,1718188247375,-250.0,0.00018082,2]
[329223962,1718188247385,-500.0,0.00018082,2]
[329223964,1718188247397,-500.0,0.00018082,2]
[329223966,1718188247407,-825.55,0.00018082,2]
[329223968,1718188247417,-500.0,0.00018082,2]
[329223970,1718188247427,-1727.59,0.00018082,2]
[329223972,1718188247437,-1740.19,0.00018082,2]
[329223974,1718188247449,-7063.79,0.00018082,2]
[329223975,1718188247460,-786.1,0.00018082,2]
[329223977,1718188247471,-810.78,0.00018082,2]
[329223980,1718188247482,-599.88311515,0.00018082,2]
[329223981,1718188247493,-500.0,0.00018082,2]
[329223984,1718188247504,-344.81526891,0.00018082,2]
[329223985,1718188247519,-3655.11,0.00018082,2]
[329223987,1718188247529,-1256.97,0.00018082,2]
[329223989,1718188247541,-18538.88,0.00018082,2]
[329223991,1718188247551,-500.34,0.00018082,2]
[329223993,1718188247562,-974.66,0.00018082,2]
[329223995,1718188247574,-3491.11,0.00018082,2]
[329223998,1718188247585,-12318.95,0.00018082,2]
[329223999,1718188247596,-500.0,0.00018082,2]
[329224001,1718188247607,-500.0,0.00018082,2]
[329224003,1718188247618,-3344.13,0.00018082,2]
[329224005,1718188247628,-5281.92082876,0.00018108,2]
[329224007,1718188247639,-1034.3,0.00018147,2]
[329224009,1718188247649,-201.2,0.00018147,2]
[329224011,1718188247660,-1535.26146313,0.00018157,2]
[329224013,1718188247670,-153.0,0.00018247,2]
[329224015,1718188247680,-1034.3,0.00018291,2]
[329224017,1718188247691,-201.2,0.00018291,2]
[329224019,1718188247701,-600.0,0.00018328,2]
[329224021,1718188247712,-1021.13,0.00018354,2]
[329224023,1718188247722,-1021.13,0.00018355,2]
[329224025,1718188247732,-160.34758777,0.00018356,2]
[329224027,1718188247743,-500.0,0.00018356,2]
[329224029,1718188247753,-335.12,0.00018356,2]
[329224031,1718188247764,-500.0,0.00018356,2]
[329224033,1718188247775,-500.0,0.00018356,2]
[329224035,1718188247785,-582.97,0.00018356,2]
[329224037,1718188247796,-500.0,0.00018356,2]
[329224039,1718188247807,-696.66,0.00018356,2]
[329224041,1718188247818,-500.0,0.00018356,2]
[329224043,1718188247828,-500.0,0.00018356,2]
[329224045,1718188247838,-500.0,0.00018356,2]
[329224047,1718188247848,-500.0,0.00018356,2]
[329224049,1718188247859,-500.0,0.00018356,4]
[329224051,1718188247870,-250.0,0.00018356,2]
[329224053,1718188247880,-500.0,0.00018356,2]
[329224055,1718188247890,-500.0,0.00018356,2]
[329224057,1718188247900,-825.55,0.00018356,2]
[329224059,1718188247910,-298.41,0.00018356,2]
[329224061,1718188247920,-1727.59,0.00018356,2]
[329224063,1718188247931,-1740.19,0.00018356,2]
[329224065,1718188247944,-7063.79,0.00018356,2]
[329224066,1718188247954,-786.1,0.00018356,2]
[329224069,1718188247964,-810.78,0.00018356,2]
[329224071,1718188247975,-500.0,0.00018356,2]
[329224073,1718188247985,-3655.11,0.00018356,2]
[329224075,1718188247995,-1256.97,0.00018356,2]
[329224076,1718188248006,-6898.11191907,0.00018356,2]
[329224526,1718188322305,19025.09150725,9.999e-05,2]
[329224546,1718188631071,1000.0,0.00012,7]
[329224568,1718188949361,467.337,0.000181,10]
[329224569,1718189153836,121794.37928827,0.000265,120]
[329224578,1718189190690,16607.9654562,0.00018082,13]
[329224579,1718189281363,583.36,0.000266,120]
[329224580,1718189345540,583.3562663,0.000266,120]
[329224582,1718189358156,1000.0,0.000181,10]
[329224586,1718189419549,-200.88962575,0.00013646,2]
[329224587,1718189419582,-300.0,0.00013647,2]
[329224588,1718189419611,-300.0,0.00013647,2]
[329224589,1718189419640,-2475.34668873,0.00013647,2]
[329224590,1718189419673,-32450.24454695,0.00013648,2]
[329224591,1718189419704,-192.081066,0.00013748,2]
[329224621,1718189438451,-1328.69531969,0.00014318,2]
[329224622,1718189438462,-310.02774165,0.00014319,2]
[329224623,1718189438482,-156.17906786,0.00014319,2]
[329224625,1718189438500,-199.48024338,0.00014319,2]
[329224626,1718189438514,-272.44132449,0.00014319,2]
[329224627,1718189438526,-24900.0,0.00014321,2]
[329224628,1718189438537,-1372.1732619,0.000149,2]
[329224629,1718189438547,-420.0,0.00014957,2]
[329224630,1718189438558,-2411.74414637,0.00015,2]
[329224631,1718189438569,-1101.09253186,0.00015,2]
[329224632,1718189438579,-190.26891304,0.00015216,2]
[329224633,1718189438590,-155.12071913,0.00015315,2]
[329224634,1718189438601,-599.50993839,0.00015315,2]
[329224635,1718189438612,-42119.04264083,0.00015317,2]
[329224636,1718189438622,-7921.82449081,0.00015318,2]
[329224637,1718189438633,-2683.16682461,0.00015323,2]
[329224638,1718189438644,-474.73181278,0.00015323,2]
[329224639,1718189438654,-214.6,0.00016133,2]
[329224640,1718189438664,-214.6,0.00016281,2]
[329224641,1718189438676,-1302.68548416,0.00016319,2]
[329224642,1718189438687,-166.25631759,0.00016333,2]
[329224643,1718189438698,-208.33723987,0.00016335,2]
[329224644,1718189438708,-9588.50838645,0.00016335,2]
[329224645,1718189438719,-155.03195233,0.00016335,2]
[329224646,1718189438730,-309.9070279,0.00016335,2]
[329224647,1718189438740,-1427.62302166,0.00016335,2]
[329224648,1718189438754,-2901.48491975,0.00016336,2]
[329224649,1718189438770,-653.11575,0.00016336,2]
[329224685,1718189440092,-7365.08835608,0.00016336,2]
[329224686,1718189440104,-2000.0,0.00016338,2]
[329224687,1718189440115,-587.0,0.00016392,2]
[329224688,1718189440128,-214.6,0.00016428,2]
[329224689,1718189440140,-16790.55058552,0.00016435,2]
[329224690,1718189440151,-1000.0,0.00016435,2]
[329224691,1718189440162,-500.0,0.00016438,2]
[329224692,1718189440172,-500.0,0.00016438,2]
[329224693,1718189440183,-500.0,0.00016438,2]
[329224694,1718189440193,-500.0,0.00016438,2]
[329224695,1718189440204,-500.0,0.00016438,2]
[329224696,1718189440214,-502.46836323,0.00016438,2]
[329224697,1718189440224,-503.1444164,0.00016438,2]
[329224698,1718189440234,-558.71,0.00016438,2]
[329224699,1718189440244,-500.0,0.00016438,2]
[329224700,1718189440255,-500.0,0.00016438,2]
[329224701,1718189440265,-500.0,0.00016438,2]
[329224702,1718189440277,-500.0,0.00016438,2]
[329224703,1718189440287,-500.0,0.00016438,2]
[329224704,1718189440298,-500.0,0.00016438,2]
[329224705,1718189440308,-500.0,0.00016438,2]
[329224706,1718189440319,-500.0,0.00016438,2]
[329224707,1718189440330,-500.0,0.00016438,2]
[329224708,1718189440345,-500.0,0.00016438,2]
[329224709,1718189440355,-500.0,0.00016438,2]
[329224710,1718189440365,-503.74802448,0.00016438,2]
[329224711,1718189440377,-500.0,0.00016438,2]
[329224712,1718189440389,-511.27915579,0.00016438,2]
[329224713,1718189440401,-500.0,0.00016438,2]
[329224714,1718189440411,-500.0,0.00016438,2]
[329224715,1718189440425,-500.0,0.00016438,2]
[329224716,1718189440436,-502.36540249,0.00016438,2]
[329224717,1718189440447,-216.40696421,0.00016438,2]
[329224718,1718189440460,-503.66219178,0.00016438,2]
[329224719,1718189440489,-500.0,0.00016438,2]
[329224720,1718189440508,-500.0,0.00016438,2]
[329224721,1718189440520,-302.37227345,0.00016438,2]
[329224722,1718189440531,-155.54442665,0.00016438,2]
[329224723,1718189440542,-509.99246313,0.00016438,2]
[329224724,1718189440553,-500.0,0.00016438,2]
[329224725,1718189440565,-526.29441157,0.00016438,2]
[329224726,1718189440575,-322.04156391,0.00016438,2]
[329224727,1718189440586,-500.0,0.00016438,2]
[329224728,1718189440597,-500.0,0.00016438,2]
[329224729,1718189440608,-500.0,0.00016438,2]
[329224730,1718189440619,-500.0,0.00016438,2]
[329224731,1718189440630,-500.0,0.00016438,2]
[329224732,1718189440641,-500.0,0.00016438,2]
[329224733,1718189440651,-500.0,0.00016438,2]
[329224734,1718189440663,-500.0,0.00016438,2]
[329224735,1718189440676,-500.0,0.00016438,2]
[329224736,1718189440686,-500.0,0.00016438,2]
[329224737,1718189440699,-500.0,0.00016438,2]
[329224738,1718189440710,-500.0,0.00016438,2]
[329224739,1718189440720,-500.0,0.00016438,2]
[329224740,1718189440731,-500.0,0.00016438,2]
[329224741,1718189440745,-519.95,0.00016438,2]
[329224742,1718189440757,-503.59991317,0.00016438,2]
[329224743,1718189440767,-500.0,0.00016438,2]
[329224744,1718189440778,-500.0,0.00016438,2]
[329224745,1718189440790,-500.0,0.00016438,2]
[329224746,1718189440801,-500.0,0.00016438,2]
[329224747,1718189440811,-500.0,0.00016438,2]
[329224748,1718189440822,-500.0,0.00016438,2]
[329224749,1718189440833,-500.0,0.00016438,2]
[329224750,1718189440844,-500.0,0.00016438,2]
[329224751,1718189440854,-500.0,0.00016438,2]
[329224752,1718189440866,-500.0,0.00016438,2]
[329224753,1718189440878,-500.0,0.00016438,2]
[329224754,1718189440888,-509.30829293,0.00016438,2]
[329224755,1718189440899,-500.0,0.00016438,2]
[329224757,1718189440910,-500.0,0.00016438,4]
[329224758,1718189440921,-500.0,0.00016438,2]
[329224759,1718189440931,-500.0,0.00016438,2]
[329224760,1718189440942,-293.70863923,0.00016438,2]
[329224761,1718189440952,-500.0,0.00016438,2]
[329224762,1718189440963,-500.0,0.00016438,2]
[329224763,1718189440974,-385.1562546,0.00016438,2]
[329224764,1718189440985,-500.0,0.00016438,2]
[329224765,1718189441166,-500.0,0.00016438,2]
[329224766,1718189441178,-376.9499464,0.00016438,2]
[329224767,1718189441194,-250.0,0.00016438,2]
[329224768,1718189441206,-500.0,0.00016438,2]
[329224769,1718189441216,-500.0,0.00016438,2]
[329224770,1718189441228,-500.0,0.00016438,2]
[329224771,1718189441239,-500.0,0.00016438,2]
[329224772,1718189441249,-500.0,0.00016438,2]
[329224773,1718189441260,-500.0,0.00016438,2]
[329224774,1718189441271,-500.0,0.00016438,2]
[329224775,1718189441282,-500.0,0.00016438,2]
[329224776,1718189441293,-500.0,0.00016438,2]
[329224777,1718189441303,-500.0,0.00016438,2]
[329224778,1718189441314,-500.0,0.00016438,2]
[329224779,1718189441324,-579.25709453,0.00016438,2]
[329224780,1718189441336,-580.83,0.00016438,2]
[329224781,1718189441351,-500.0,0.00016438,2]
[329224782,1718189441362,-500.0,0.00016438,2]
[329224783,1718189441372,-254.06280767,0.00016438,2]
[329224784,1718189441384,-500.0,0.00016438,2]
[329224785,1718189441395,-500.0,0.00016438,2]
[329224786,1718189441406,-500.0,0.00016438,2]
[329224787,1718189441417,-357.27971404,0.00016438,2]
[329224788,1718189441427,-500.0,0.00016438,2]
[329224789,1718189441438,-500.0,0.00016438,2]
[329224790,1718189441449,-503.50798478,0.00016438,2]
[329224791,1718189441460,-500.0,0.00016438,2]
[329224792,1718189441483,-500.0,0.00016438,2]
[329224793,1718189441503,-500.0,0.00016438,2]
[329224794,1718189441515,-500.0,0.00016438,2]
[329224795,1718189441525,-346.58053634,0.00016438,2]
[329224796,1718189441535,-500.0,0.00016438,2]
[329224797,1718189441546,-500.0,0.00016438,2]
[329224799,1718189441556,-169.92200852,0.00016438,2]
[329224801,1718189441567,-723.66,0.00016438,2]
[329224803,1718189441577,-500.0,0.00016438,2]
[329224804,1718189441589,-500.0,0.00016438,2]
[329224805,1718189441600,-500.0,0.00016438,2]
[329224806,1718189441613,-500.0,0.00016438,2]
[329224807,1718189441629,-500.0,0.00016438,2]
[329224808,1718189441639,-500.0,0.00016438,2]
[329224809,1718189441650,-500.0,0.00016438,2]
[329224811,1718189441660,-500.0,0.00016438,2]
[329224813,1718189441671,-503.20458748,0.00016438,2]
[329224814,1718189441681,-505.85200488,0.00016438,2]
[329224815,1718189441692,-500.0,0.00016438,2]
[329224816,1718189441703,-500.0,0.00016438,2]
[329224817,1718189441713,-500.0,0.00016438,2]
[329224818,1718189441724,-500.0,0.00016438,2]
[329224820,1718189441736,-500.0,0.00016438,2]
[329224821,1718189441746,-500.0,0.00016438,2]
[329224822,1718189441757,-500.0,0.00016438,2]
[329224823,1718189441768,-500.0,0.00016438,2]
[329224824,1718189441779,-500.0,0.00016438,2]
[329224825,1718189441790,-500.0,0.00016438,2]
[329224826,1718189441800,-570.17,0.00016438,2]
[329224827,1718189441813,-199.90481313,0.00016438,2]
[329224828,1718189441824,-505.01531742,0.00016438,2]
[329224829,1718189441834,-500.0,0.00016438,2]
[329224830,1718189441845,-500.0,0.00016438,2]
[329224831,1718189441862,-500.0,0.00016438,2]
[329224832,1718189441874,-500.0,0.00016438,2]
[329224834,1718189441886,-500.0,0.00016438,2]
[329224836,1718189441896,-500.0,0.00016438,2]
[329224838,1718189441907,-500.0,0.00016438,2]
[329224839,1718189441918,-500.0,0.00016438,2]
[329224840,1718189441929,-460.17387737,0.00016438,2]
[329224841,1718189441939,-500.0,0.00016438,2]
[329224842,1718189441950,-500.0,0.00016438,2]
[329224843,1718189441960,-500.0,0.00016438,2]
[329224844,1718189441970,-500.0,0.00016438,2]
[329224845,1718189441981,-506.64528568,0.00016438,2]
[329224846,1718189441991,-500.0,0.00016438,2]
[329224847,1718189442002,-500.0,0.00016438,2]
[329224848,1718189442012,-504.51790088,0.00016438,2]
[329224849,1718189442023,-500.0,0.00016438,2]
[329224850,1718189442033,-500.0,0.00016438,2]
[329224851,1718189442044,-500.0,0.00016438,2]
[329224852,1718189442055,-500.0,0.00016438,2]
[329224853,1718189442065,-500.0,0.00016438,2]
[329224854,1718189442075,-500.0,0.00016438,2]
[329224855,1718189442086,-500.0,0.00016438,2]
[329224856,1718189442097,-500.0,0.00016438,2]
[329224857,1718189442109,-500.0,0.00016438,2]
[329224858,1718189442123,-500.0,0.00016438,2]
[329224859,1718189442134,-500.0,0.00016438,2]
[329224860,1718189442144,-500.0,0.00016438,2]
[329224861,1718189442155,-500.0,0.00016438,2]
[329224862,1718189442167,-500.0,0.00016438,2]
[329224863,1718189442177,-299.71,0.00016438,2]
[329224864,1718189442188,-500.0,0.00016438,2]
[329224865,1718189442198,-501.18847149,0.00016438,2]
[329224866,1718189442209,-500.0,0.00016438,2]
[329224867,1718189442220,-825.55,0.00016438,2]
[329224868,1718189442231,-500.0,0.00016438,2]
[329224869,1718189442241,-500.0,0.00016438,2]
[329224870,1718189442252,-500.0,0.00016438,2]
[329224871,1718189442263,-500.0,0.00016438,2]
[329224872,1718189442273,-500.0,0.00016438,2]
[329224873,1718189442284,-500.0,0.00016438,2]
[329224874,1718189442295,-500.0,0.00016438,2]
[329224875,1718189442306,-500.0,0.00016438,2]
[329224876,1718189442320,-500.0,0.00016438,2]
[329224877,1718189442331,-1727.59,0.00016438,2]
[329224878,1718189442348,-1740.19,0.00016438,2]
[329224879,1718189442362,-500.0,0.00016438,2]
[329224880,1718189442375,-500.0,0.00016438,2]
[329224881,1718189442388,-1072.99,0.00016438,2]
[329224883,1718189442399,-1072.99,0.00016438,2]
[329224885,1718189442411,-500.0,0.00016438,2]
[329224886,1718189442423,-500.0,0.00016438,2]
[329224888,1718189442433,-1072.99,0.00016438,2]
[329224890,1718189442445,-1072.99,0.00016438,2]
[329224891,1718189442472,-1072.99,0.00016438,2]
[329224892,1718189442491,-1072.99,0.00016438,2]
[329224893,1718189442504,-1072.99,0.00016438,2]
[329224894,1718189442515,-7063.79,0.00016438,2]
[329224895,1718189442529,-500.0,0.00016438,2]